bitfinex/quotes_SOLUSD_20220109
["timestamp","ask_amount","ask_price","bid_price","bid_amount"]
[1641696702502,3.03219997,143.82,143.74,554.46378087]
[1641696702704,34.8056,143.79,143.74,554.46378087]
[1641696703001,0.26,143.81,143.74,544.46378087]
[1641696703207,10.4438,143.77,143.74,474.82738087]
[1641696703402,10.4438,143.77,143.73,3.91824105]
[1641696703801,10.4438,143.77,143.71,94.7]
[1641696704002,0.26,143.76,143.71,94.7]
[1641696704200,10.72100845,143.76,143.71,94.7]
[1641696704401,10.4478,143.74,143.71,94.7]
[1641696704803,3.29219997,143.73,143.71,94.7]
[1641696705102,38.11649997,143.73,143.71,94.7]
[1641696705501,38.11649997,143.73,143.72,3.03060003]
[1641696705702,38.11649997,143.73,143.63,38.21068602]
[1641696705902,15.66035722,143.73,143.63,10.0]
[1641696706502,10.4513,143.62,143.59,10.0]
[1641696707605,10.4489,143.66,143.59,10.0]
[1641696707805,10.0,143.79,143.59,10.0]
[1641696708104,72.0568,143.8,143.6,125.02]
[1641696708302,72.0568,143.8,143.61,10.0]
[1641696708504,20.65353366,143.79,143.62,23.85249494]
[1641696708706,20.65353366,143.79,143.63,10.0]
[1641696708905,20.65353366,143.79,143.64,0.26]
[1641696709104,20.65353366,143.79,143.65,35.46724642]
[1641696709504,20.65353366,143.79,143.66,0.26]
[1641696709704,20.65353366,143.79,143.66,0.51]
[1641696711310,113.0808,143.81,143.67,10.0]
[1641696711510,113.0808,143.81,143.68,0.51]
[1641696711709,113.0808,143.81,143.69,10.0]
[1641696711909,77.9822,143.82,143.7,0.51]
[1641696712409,95.84163815,143.82,143.7,29.28933048]
[1641696714009,95.84163815,143.82,143.64,3.62647859]
[1641696714210,95.84163815,143.82,143.65,8.61]
[1641696714211,104.19163815,143.82,143.65,8.61]
[1641696714410,1.58835727,143.81,143.65,8.61]
[1641696714611,9.93835727,143.81,143.65,8.35]
[1641696714811,32.64005727,143.81,143.65,8.35]
[1641696715011,31.3117,143.81,143.66,26.85599322]
[1641696715212,31.3117,143.81,143.66,35.20599322]
[1641696715615,31.0517,143.81,143.66,35.20599322]
[1641696715812,18.68750129,143.83,143.66,35.20599322]
[1641696716015,18.68750129,143.83,143.67,0.51]
[1641696716214,18.68750129,143.83,143.68,8.35]
[1641696716415,18.68750129,143.83,143.69,0.26]
[1641696716616,18.68750129,143.83,143.69,8.35]
[1641696717015,18.68750129,143.83,143.66,26.85599322]
[1641696717016,9.67835727,143.82,143.66,26.85599322]
[1641696717216,3.12692039,143.81,143.69,26.57607786]
[1641696717421,3.38692039,143.81,143.69,26.57607786]
[1641696718315,3.38692039,143.81,143.7,0.26]
[1641696719016,0.26,143.81,143.7,0.26]
[1641696719216,18.68750129,143.83,143.71,8.35]
[1641696719416,18.68750129,143.83,143.72,0.51]
[1641696719615,18.68750129,143.83,143.73,8.35]
[1641696720919,0.26,143.82,143.73,8.35]
[1641696721118,18.44750129,143.83,143.73,8.35]
[1641696721520,18.44750129,143.83,143.7,8.35]
[1641696722117,18.44750129,143.83,143.71,0.51]
[1641696722317,18.44750129,143.83,143.72,8.35]
[1641696723222,18.44750129,143.83,143.72,35.14709775]
[1641696723424,18.44750129,143.83,143.73,0.26]
[1641696723620,18.44750129,143.83,143.74,8.35]
[1641696724421,0.26,143.82,143.74,8.35]
[1641696725223,18.44750129,143.83,143.74,18.7825]
[1641696725525,18.44750129,143.83,143.75,0.51]
[1641696725725,18.44750129,143.83,143.75,8.86]
[1641696725923,18.44750129,143.83,143.76,0.26]
[1641696726124,18.44750129,143.83,143.77,8.35]
[1641696726525,18.44750129,143.83,143.78,0.26]
[1641696727325,18.44750129,143.83,143.77,8.11]
[1641696727854,18.44750129,143.83,143.79,10.4292]
[1641696728262,18.44750129,143.83,143.77,8.11]
[1641696729859,0.26,143.82,143.73,8.35]
[1641696731762,0.26,143.82,143.69,8.35]
[1641696731964,47.612,143.82,143.69,8.35]
[1641696732359,6.08325003,143.81,143.69,8.35]
[1641696732760,0.26,143.8,143.69,8.35]
[1641696734363,1.58331767,143.8,143.69,8.35]
[1641696734564,1.58331767,143.8,143.65,8.35]
[1641696734764,25.93991767,143.8,143.65,8.35]
[1641696735365,24.6166,143.8,143.66,0.25]
[1641696735575,24.6166,143.8,143.67,8.35]
[1641696737565,24.3566,143.8,143.67,46.80847616]
[1641696737966,24.3566,143.8,143.68,0.25]
[1641696738168,24.3566,143.8,143.69,8.35]
[1641696738569,24.3566,143.8,143.71,10.4352]
[1641696738766,24.3566,143.8,143.69,8.35]
[1641696738968,24.3566,143.8,143.7,24.54580372]
[1641696739767,6.08325003,143.81,143.71,8.6]
[1641696739968,6.08325003,143.81,143.71,8.36]
[1641696740769,6.08325003,143.81,143.71,43.134]
[1641696740969,6.08325003,143.81,143.71,8.1]
[1641696741570,0.26,143.8,143.71,8.1]
[1641696742775,0.26,143.8,143.71,35.74921805]
[1641696742975,0.26,143.8,143.72,0.26]
[1641696743176,0.26,143.8,143.73,10.4337]
[1641696743375,0.26,143.81,143.73,10.4337]
[1641696743576,24.2209,143.82,143.74,8.35]
[1641696743878,18.44750129,143.83,143.74,33.21051993]
[1641696744575,18.44750129,143.83,143.77,10.4312]
[1641696744776,0.25,143.82,143.77,10.4312]
[1641696744976,0.25,143.82,143.76,8.35]
[1641696745177,0.51,143.82,143.76,8.35]
[1641696745979,0.25,143.82,143.76,8.35]
[1641696746613,0.25,143.82,143.76,39.97299845]
[1641696746779,18.44750129,143.83,143.77,0.51]
[1641696746979,18.44750129,143.83,143.78,8.35]
[1641696747380,18.44750129,143.83,143.79,0.26]
[1641696747681,18.44750129,143.83,143.8,10.4285]
[1641696748083,18.44750129,143.83,143.81,3.03060003]
[1641696748282,23.869,143.89,143.81,3.03060003]
[1641696748482,95.7798,143.92,143.82,0.51]
[1641696748682,95.7798,143.92,143.83,8.35]
[1641696748887,152.4305,143.95,143.83,8.35]
[1641696748888,24.4415,143.94,143.83,8.35]
[1641696749083,24.4415,143.94,143.87,10.4232]
[1641696749283,40.79964884,143.94,143.83,8.35]
[1641696749685,24.4415,143.94,143.84,0.25]
[1641696749987,78.6872,143.97,143.89,10.4226]
[1641696750185,74.6805,143.98,143.89,10.4226]
[1641696750586,16.18956326,143.98,143.9,3.0]
[1641696750785,16.18956326,143.98,143.87,8.35]
[1641696751388,0.25,143.97,143.87,8.35]
[1641696751585,16.18956326,143.98,143.87,8.35]
[1641696751787,16.18956326,143.98,143.88,0.25]
[1641696751988,16.18956326,143.98,143.88,8.35]
[1641696752791,0.26,143.97,143.88,8.35]
[1641696752989,0.51,143.97,143.88,8.35]
[1641696753191,1.82152741,143.97,143.88,8.35]
[1641696753389,10.4271,143.94,143.88,8.35]
[1641696753590,6.63960244,143.93,143.88,8.35]
[1641696753789,6.89960244,143.93,143.88,8.35]
[1641696753992,0.26,143.93,143.88,8.35]
[1641696754391,0.51,143.97,143.88,8.35]
[1641696754991,0.25,143.97,143.88,8.35]
[1641696755397,0.25,143.97,143.91,10.4212]
[1641696755792,20.47576218,143.99,143.91,10.4212]
[1641696756496,0.26,143.98,143.91,10.4212]
[1641696756693,0.26,143.98,143.9,10.4219]
[1641696756893,0.26,143.99,143.88,8.35]
[1641696757493,21.14797428,143.99,143.88,8.35]
[1641696757794,21.14797428,143.99,143.88,18.7734]
[1641696759193,0.26,143.99,143.88,18.7734]
[1641696759595,0.51,143.99,143.88,18.7734]
[1641696761723,0.25,143.99,143.88,18.7734]
[1641696761922,0.25,143.99,143.89,0.51]
[1641696762123,0.25,143.99,143.94,10.4184]
[1641696762523,73.9485,144.03,143.92,8.35]
[1641696762724,21.34344066,144.02,143.92,8.35]
[1641696762924,10.671,144.02,143.92,8.35]
[1641696763224,73.6985,144.03,143.92,18.7706]
[1641696763424,0.26,144.02,143.92,18.7706]
[1641696763625,73.6985,144.03,143.92,18.7706]
[1641696763828,94.7,144.08,143.92,18.7706]
[1641696764026,24.3805,144.07,143.93,23.14862302]
[1641696764329,24.3805,144.07,143.96,10.4149]
[1641696764925,0.26,144.06,143.96,10.4149]
[1641696765326,10.6778,144.06,143.96,10.4149]
[1641696766028,1.23104273,144.05,143.95,10.4184]
[1641696766327,1.23104273,144.05,143.94,8.35]
[1641696766528,0.26,144.04,143.94,40.20524361]
[1641696766930,0.26,144.04,143.94,8.35]
[1641696767529,0.26,144.04,143.94,18.769]
[1641696768629,0.26,144.04,143.94,8.35]
[1641696768930,1.57152741,144.04,143.89,8.35]
[1641696769532,10.4222,143.99,143.89,8.35]
[1641696769929,3.26,143.98,143.89,8.35]
[1641696770131,2.76,143.98,143.89,8.35]
[1641696770332,0.26,143.98,143.89,8.35]
[1641696770534,0.26,143.99,143.89,8.35]
[1641696771933,10.6819,143.99,143.86,8.35]
[1641696772137,112.22332741,143.99,143.86,8.35]
[1641696772337,3.0,143.98,143.86,8.35]
[1641696772635,0.26,143.97,143.82,8.35]
[1641696772864,51.5917206,143.97,143.82,39.18226025]
[1641696773036,1.31152741,143.96,143.82,39.18226025]
[1641696773236,10.4301,143.89,143.82,39.18226025]
[1641696773435,0.26,143.88,143.82,39.18226025]
[1641696773636,0.26,143.88,143.82,8.35]
[1641696774036,0.26,143.9,143.82,8.35]
[1641696774435,10.4303,143.88,143.82,8.35]
[1641696774638,10.4303,143.88,143.82,37.76504946]
[1641696774836,47.1934,143.92,143.82,37.76504946]
[1641696775042,149.202,143.96,143.83,3.51]
[1641696775238,73.7818,143.97,143.84,8.35]
[1641696775438,73.7818,143.97,143.9,10.4221]
[1641696775639,47.6772,144.0,143.9,10.4221]
[1641696775839,16.94412598,143.99,143.9,18.7721]
[1641696776438,27.36622598,143.99,143.9,8.35]
[1641696776939,0.26,143.98,143.86,8.35]
[1641696777140,23.7437,143.98,143.86,8.35]
[1641696777340,34.7529,143.97,143.86,8.35]
[1641696777539,6.14503972,143.96,143.86,8.35]
[1641696777739,10.4265,143.93,143.86,8.35]
[1641696778039,10.4265,143.93,143.83,3.0]
[1641696778240,10.4265,143.93,143.84,10.01]
[1641696778438,10.4265,143.93,143.84,10.27]
[1641696778639,0.26,143.92,143.84,10.01]
[1641696779341,5.88503972,143.96,143.84,10.01]
[1641696779342,0.26,143.95,143.84,10.01]
[1641696779944,10.4294,143.9,143.84,10.01]
[1641696780373,17.20412598,143.89,143.78,10.01]
[1641696780573,20.20412598,143.89,143.78,10.01]
[1641696780973,10.4331,143.84,143.78,10.01]
[1641696781571,79.377,143.88,143.78,10.01]
[1641696781771,0.26,143.87,143.78,10.01]
[1641696781973,27.37332598,143.89,143.78,20.4407]
[1641696782171,27.37332598,143.89,143.79,0.25]
[1641696782374,0.26,143.88,143.8,10.01]
[1641696783175,10.69,143.88,143.8,10.01]
[1641696783376,10.69,143.88,143.77,10.01]
[1641696784980,3.0,143.87,143.77,10.01]
[1641696785180,40.66743972,143.86,143.77,10.01]
[1641696785376,40.92743972,143.86,143.77,10.01]
[1641696786676,10.4331,143.85,143.77,10.01]
[1641696786876,0.26,143.84,143.77,10.01]
[1641696787679,10.4337,143.84,143.77,10.01]
[1641696787879,16.94412598,143.83,143.77,10.01]
[1641696788178,17.20412598,143.83,143.77,10.01]
[1641696788782,27.63822598,143.83,143.77,10.01]
[1641696789181,0.26,143.83,143.77,10.01]
[1641696789381,0.26,143.85,143.77,10.01]
[1641696790184,19.7343925,143.85,143.77,10.01]
[1641696791685,10.4347,143.82,143.77,10.01]
[1641696791886,0.26,143.81,143.77,10.01]
[1641696792788,10.4369,143.79,143.77,10.01]
[1641696792989,3.5337999,143.78,143.77,10.01]
[1641696793389,0.26,143.81,143.77,12.54060003]
[1641696793791,0.26,143.81,143.77,10.01]
[1641696795790,10.6955,143.81,143.77,10.01]
[1641696796993,0.26,143.81,143.77,10.01]
[1641696797492,0.26,143.81,143.75,3.62318901]
[1641696798093,10.6954,143.81,143.75,3.62318901]
[1641696799520,10.6954,143.81,143.72,10.01]
[1641696801419,10.4354,143.81,143.72,10.01]
[1641696802422,0.26,143.8,143.72,10.01]
[1641696802621,10.4398,143.76,143.72,10.01]
[1641696802824,19.4743925,143.76,143.72,10.01]
[1641696803021,0.26,143.75,143.72,10.01]
[1641696803222,3.5337999,143.74,143.72,10.01]
[1641696803422,0.26,143.73,143.72,10.01]
[1641696803622,0.26,143.73,143.72,12.54060003]
[1641696803823,0.26,143.73,143.72,10.01]
[1641696804521,7.1485731,143.73,143.72,10.01]
[1641696804722,4.11637313,143.73,143.68,10.01]
[1641696805023,0.50159993,143.73,143.68,10.01]
[1641696805221,76.5935,143.81,143.68,10.01]
[1641696805424,76.5935,143.81,143.69,0.25]
[1641696805621,76.5935,143.81,143.68,10.01]
[1641696806023,18.66635351,143.81,143.69,30.65870542]
[1641696806223,18.66635351,143.81,143.7,10.01]
[1641696806421,18.66635351,143.81,143.71,0.51]
[1641696806629,72.4387,143.84,143.76,10.4313]
[1641696806824,76.1551538,143.89,143.77,10.01]
[1641696807123,76.1551538,143.89,143.77,10.27]
[1641696807124,47.6249,143.89,143.77,10.27]
[1641696807723,15.42664312,143.88,143.8,10.4284]
[1641696808925,0.26,143.87,143.81,10.01]
[1641696809127,0.26,143.87,143.82,10.4272]
[1641696810130,102.77085948,143.92,143.82,10.4272]
[1641696810332,14.49405948,143.92,143.83,10.01]
[1641696810542,24.7869,143.93,143.83,10.27]
[1641696810732,14.49153454,143.95,143.84,3.0]
[1641696810931,37.45833454,143.95,143.84,13.52]
[1641696811135,14.49153454,143.95,143.84,42.84419328]
[1641696811331,17.297716,143.96,143.84,42.84419328]
[1641696811731,17.297716,143.96,143.9,10.4205]
[1641696812131,24.5571,144.0,143.9,10.4205]
[1641696812933,157.8053516,144.01,143.95,10.4167]
[1641696812934,3.6035516,144.01,143.95,10.4167]
[1641696813333,110.29948236,144.02,143.95,10.4167]
[1641696813532,110.29948236,144.02,143.96,3.0]
[1641696814033,110.29948236,144.02,143.97,10.4155]
[1641696814233,110.29948236,144.02,143.94,0.26]
[1641696814433,110.29948236,144.02,143.93,10.01]
[1641696814933,110.29948236,144.02,143.94,0.25]
[1641696815133,110.29948236,144.02,143.93,10.01]
[1641696815738,0.26,144.01,143.93,10.01]
[1641696816436,0.26,144.01,143.93,20.4297]
[1641696816836,94.7,144.02,143.93,20.4297]
[1641696817538,94.7,144.02,143.96,10.4162]
[1641696818537,98.4890734,144.02,143.96,10.4162]
[1641696818937,98.4890734,144.02,143.95,20.4282]
[1641696819136,0.26,144.01,143.95,20.4282]
[1641696819335,94.7,144.02,143.95,20.4282]
[1641696819936,94.7,144.02,143.96,0.26]
[1641696820136,14.48287403,144.07,143.97,10.4141]
[1641696820537,13.91224675,144.08,143.98,13.27]
[1641696820939,3.6035516,144.09,143.99,0.25]
[1641696821140,3.6035516,144.09,144.0,10.01]
[1641696821443,3.6035516,144.11,144.01,0.51]
[1641696821640,3.6035516,144.11,144.01,13.52]
[1641696821840,18.11816731,144.1,144.01,13.52]
[1641696822044,18.11816731,144.1,144.01,20.4236]
[1641696822242,18.11816731,144.1,144.01,10.01]
[1641696822542,0.26,144.09,143.97,10.01]
[1641696823141,11.12639839,144.07,143.97,10.01]
[1641696823546,0.26,144.06,143.97,10.01]
[1641696824243,0.26,144.06,143.97,36.3987521]
[1641696824445,0.26,144.06,143.98,10.4159]
[1641696824843,0.97099839,144.07,143.98,10.4159]
[1641696825477,0.71099839,144.07,143.97,10.01]
[1641696826378,10.418,144.04,143.97,36.60637175]
[1641696826576,77.0928,144.08,143.97,47.02317175]
[1641696826776,74.0928,144.08,143.97,47.02317175]
[1641696826977,74.0928,144.08,143.97,20.4268]
[1641696827677,84.5075,144.08,143.97,20.4268]
[1641696827877,84.5075,144.08,143.98,0.25]
[1641696828080,84.5075,144.08,143.98,3.25]
[1641696828277,84.5075,144.08,143.98,13.664]
[1641696828576,74.0928,144.08,143.98,10.414]
[1641696828976,84.5074,144.08,143.98,10.414]
[1641696829776,74.0928,144.08,143.98,10.414]
[1641696830778,10.4153,144.07,143.98,10.414]
[1641696831079,0.26,144.06,143.98,10.414]
[1641696831279,74.0928,144.08,143.98,10.414]
[1641696831678,74.0928,144.08,143.98,20.424]
[1641696832380,84.508,144.08,143.98,20.424]
[1641696833983,84.508,144.08,143.99,0.26]
[1641696834182,84.508,144.08,143.98,20.424]
[1641696834383,84.508,144.08,143.99,10.6748]
[1641696834881,84.508,144.08,143.99,10.4148]
[1641696836185,84.508,144.08,143.99,36.81384906]
[1641696836186,74.0928,144.08,143.99,36.81384906]
[1641696836586,74.0928,144.08,143.99,10.4148]
[1641696837486,74.0928,144.08,144.01,10.4137]
[1641696837784,0.26,144.08,144.01,10.4137]
[1641696839888,0.26,144.1,144.01,10.4137]
[1641696840688,10.6733,144.1,144.01,35.13432186]
[1641696840989,12.63159617,144.1,144.01,35.13432186]
[1641696841189,2.21829617,144.1,144.01,35.13432186]
[1641696842191,1.95829617,144.1,144.02,3.25]
[1641696842491,1.95829617,144.1,144.03,10.01]
[1641696842690,3.6035516,144.1,144.03,10.01]
[1641696842890,3.6035516,144.1,144.04,3.51]
[1641696843090,3.6035516,144.1,144.05,10.01]
[1641696843292,3.6035516,144.1,144.08,10.4058]
[1641696843492,3.6035516,144.15,144.09,2.79060003]
[1641696843691,3.6035516,144.15,144.09,5.79060003]
[1641696844296,3.6035516,144.15,144.09,16.19690003]
[1641696845495,7.5401381,144.17,144.09,16.19690003]
[1641696846296,3.6035516,144.17,144.09,16.19690003]
[1641696846999,3.6035516,144.17,144.09,39.77026637]
[1641696847496,3.6035516,144.17,144.13,10.405]
[1641696847896,3.6035516,144.18,144.13,10.405]
[1641696848398,0.26,144.17,144.13,10.405]
[1641696848598,3.6035516,144.18,144.13,10.405]
[1641696848801,7.5401381,144.19,144.13,10.405]
[1641696849801,3.6035516,144.19,144.14,3.0]
[1641696849999,3.6035516,144.19,144.16,10.4032]
[1641696850199,3.5337999,144.18,144.13,3.0]
[1641696850411,3.5337999,144.18,144.12,10.01]
[1641696850899,0.26,144.17,144.05,20.4213]
[1641696851101,0.26,144.17,144.05,10.4113]
[1641696851300,1.26765789,144.17,144.05,43.82676992]
[1641696851735,25.49715789,144.17,144.05,43.82676992]
[1641696852140,25.49715789,144.17,144.08,10.4091]
[1641696852835,10.4081,144.16,144.08,10.4091]
[1641696853034,0.26,144.15,144.08,10.4091]
[1641696853236,25.49715789,144.17,144.08,10.4091]
[1641696853834,24.4895,144.17,144.08,10.4091]
[1641696854243,24.2295,144.17,144.08,10.4091]
[1641696854738,3.6035516,144.18,144.09,30.93879118]
[1641696855035,3.6035516,144.19,144.11,10.4066]
[1641696855436,0.26,144.18,144.11,10.4066]
[1641696855838,24.8434,144.2,144.11,10.4066]
[1641696856038,0.35897575,144.19,144.11,10.4066]
[1641696856538,0.35897575,144.19,144.09,40.94879118]
[1641696856539,10.4077,144.16,144.1,10.4077]
[1641696856940,24.8434,144.2,144.1,10.4077]
[1641696857545,24.8434,144.2,144.11,3.0]
[1641696857744,24.8434,144.2,144.1,10.4077]
[1641696857944,24.8434,144.2,144.14,10.4044]
[1641696858143,24.8434,144.2,144.11,37.6812]
[1641696858342,24.8434,144.2,144.12,23.92653761]
[1641696858844,35.2486,144.2,144.12,23.92653761]
[1641696859042,35.2486,144.2,144.11,37.6812]
[1641696859043,0.26,144.19,144.13,10.4052]
[1641696861347,10.6658,144.19,144.09,10.01]
[1641696861745,11.96516036,144.19,144.09,10.01]
[1641696861945,10.6658,144.19,144.09,10.01]
[1641696863546,15.56871196,144.19,144.09,10.01]
[1641696863848,10.4103,144.14,144.09,10.01]
[1641696864047,4.98271289,144.13,144.07,10.4097]
[1641696864247,5.24271289,144.13,144.07,10.4097]
[1641696864647,5.24271289,144.13,144.06,10.01]
[1641696865649,0.26,144.13,144.06,10.01]
[1641696865849,0.26,144.13,144.06,20.4205]
[1641696865850,10.4101,144.13,144.06,20.4205]
[1641696866251,0.26,144.12,144.06,20.4205]
[1641696867452,10.4101,144.13,144.06,20.4205]
[1641696870059,11.61339574,144.12,144.06,20.4205]
[1641696870258,11.61339574,144.12,144.04,10.412]
[1641696870489,11.61339574,144.12,143.99,10.01]
[1641696870685,23.3837,144.11,143.99,10.01]
[1641696870890,0.26,144.1,143.99,10.01]
[1641696871392,14.37149459,144.09,143.99,10.01]
[1641696871587,10.4161,144.04,143.99,10.01]
[1641696871986,0.26,144.03,143.99,10.01]
[1641696872390,0.26,144.05,143.99,10.01]
[1641696872787,10.4168,144.03,143.99,10.01]
[1641696874488,0.26,144.05,143.99,10.01]
[1641696874693,125.5882,144.08,143.99,10.01]
[1641696874889,77.8978,144.08,144.0,28.69251767]
[1641696875092,18.08205947,144.1,144.01,10.01]
[1641696875490,14.47850787,144.1,144.01,10.01]
[1641696875690,10.4131,144.08,144.02,0.51]
[1641696875891,14.47850787,144.1,144.03,10.01]
[1641696876893,10.4124,144.09,144.03,20.4224]
[1641696877495,14.47850787,144.1,144.04,3.0]
[1641696877700,73.775,144.12,144.05,10.01]
[1641696877896,22.5098,144.14,144.05,10.01]
[1641696878297,0.26,144.13,144.06,0.26]
[1641696878497,0.26,144.13,144.06,3.26]
[1641696878697,32.38496616,144.16,144.07,10.01]
[1641696878897,0.26,144.15,144.07,10.01]
[1641696879298,0.26,144.15,144.1,10.4075]
[1641696880302,10.6677,144.15,144.07,20.419]
[1641696882202,10.6677,144.15,144.07,50.3237844]
[1641696884006,10.6677,144.15,144.08,3.0]
[1641696884204,10.6677,144.15,144.07,20.419]
[1641696884706,0.26,144.15,144.07,20.419]
[1641696885106,0.26,144.15,144.08,26.15180582]
[1641696886807,0.26,144.15,144.1,10.4071]
[1641696888109,0.26,144.15,144.11,24.5334484]
[1641696888507,10.6679,144.15,144.07,44.6987]
[1641696888708,14.47584084,144.16,144.08,3.51]
[1641696888908,14.47584084,144.16,144.09,10.01]
[1641696889342,14.47584084,144.16,144.1,0.26]
[1641696889541,3.6035516,144.2,144.12,10.4061]
[1641696889740,3.6035516,144.2,144.13,10.01]
[1641696889940,3.6035516,144.2,144.13,13.52]
[1641696890140,3.6035516,144.2,144.15,34.6698]
[1641696890345,3.6035516,144.21,144.16,10.01]
[1641696890542,3.6035516,144.21,144.18,10.4011]
[1641696890742,3.6035516,144.21,144.19,2.53060003]
[1641696891442,14.0076516,144.21,144.19,2.53060003]
[1641696891641,3.5337999,144.2,144.19,2.53060003]
[1641696892043,3.7937999,144.2,144.16,10.01]
[1641696892243,3.5337999,144.2,144.16,10.01]
[1641696892741,10.4017,144.24,144.17,27.57373632]
[1641696892942,0.26,144.23,144.17,10.01]
[1641696893745,0.26,144.25,144.17,10.01]
[1641696893944,10.4019,144.24,144.17,49.96211607]
[1641696894446,0.26,144.23,144.17,49.96211607]
[1641696895049,10.4019,144.24,144.17,49.96211607]
[1641696896349,10.4012,144.25,144.17,49.96211607]
[1641696897351,0.26,144.24,144.17,49.96211607]
[1641696897551,0.26,144.24,144.18,3.0]
[1641696897754,0.26,144.24,144.19,10.4007]
[1641696903356,10.6618,144.24,144.19,10.4007]
[1641696903557,10.4018,144.24,144.18,20.412]
[1641696903761,0.26,144.23,144.15,10.01]
[1641696903956,0.26,144.23,144.15,13.01]
[1641696904156,0.26,144.23,144.15,10.01]
[1641696904358,10.4038,144.21,144.15,10.01]
[1641696904659,23.3775,144.24,144.15,10.01]
[1641696904856,0.26,144.2,144.09,10.01]
[1641696905057,0.26,144.2,144.11,3.0]
[1641696905460,10.4046,144.2,144.11,3.0]
[1641696905658,24.03337084,144.2,144.09,10.01]
[1641696905859,0.26,144.19,144.1,10.4078]
[1641696906861,10.4081,144.15,144.11,3.0]
[1641696907261,0.26,144.14,144.11,3.0]
[1641696907461,0.26,144.14,144.12,2.53060003]
[1641696907888,0.26,144.14,144.13,3.0]
[1641696909164,22.7691,144.23,144.13,3.0]
[1641696909364,0.26,144.21,144.13,3.0]
[1641696909563,0.26,144.21,144.12,3.0]
[1641696909766,0.26,144.21,144.12,3.26]
[1641696909964,0.26,144.21,144.12,32.36012507]
[1641696910165,10.6635,144.21,144.15,10.404]
[1641696910767,10.6635,144.21,144.12,32.10012507]
[1641696911171,10.4035,144.21,144.12,32.10012507]
[1641696911868,10.4035,144.21,144.13,10.01]
[1641696912668,10.405,144.19,144.13,10.01]
[1641696913070,0.26,144.18,144.13,10.01]
[1641696913772,10.406,144.18,144.13,10.01]
[1641696913972,0.26,144.17,144.13,10.01]
[1641696914670,34.9527,144.19,144.13,10.01]
[1641696914869,10.4083,144.16,144.13,10.01]
[1641696915072,10.4083,144.16,144.14,2.53060003]
[1641696915270,0.26,144.15,144.14,2.53060003]
[1641696915471,3.7937999,144.15,144.11,10.01]
[1641696915672,0.26,144.15,144.11,10.01]
[1641696915871,0.26,144.18,144.11,10.01]
[1641696916371,10.4077,144.15,144.11,10.01]
[1641696916874,3.26,144.18,144.11,10.01]
[1641696919674,22.9287,144.2,144.11,20.417]
[1641696919873,26.5322516,144.2,144.11,20.417]
[1641696920073,26.5322516,144.2,144.12,3.26]
[1641696920274,3.6035516,144.2,144.12,13.27]
[1641696920873,10.4041,144.2,144.12,13.27]
[1641696921474,10.4041,144.2,144.12,13.01]
[1641696921684,10.4041,144.2,144.12,10.01]
[1641696921875,0.26,144.19,144.12,10.01]
[1641696922076,10.4078,144.16,144.12,10.01]
[1641696922477,2.06453025,144.15,144.12,10.01]
[1641696922776,3.5337999,144.14,144.06,10.01]
[1641696922979,10.4105,144.12,144.06,20.4208]
[1641696923176,0.26,144.13,144.06,20.4208]